bitfinex-derivatives/quotes_BTCF0:USTF0_20250620
["timestamp","ask_amount","ask_price","bid_price","bid_amount"]
[1750412696907,0.00657407,105990.0,105980.0,2.63834851]
[1750412697307,0.00657407,105990.0,105980.0,2.99914851]
[1750412704715,0.08194467,105990.0,105980.0,2.99914851]
[1750412707710,0.19523757,105990.0,105980.0,1.20033605]
[1750412707911,0.35238348,105990.0,105980.0,2.03539769]
[1750412708112,0.35238348,105990.0,105980.0,1.32939769]
[1750412708313,0.25813757,105990.0,105980.0,1.90283769]
[1750412708510,0.35238348,105990.0,105980.0,1.90283769]
[1750412709111,0.25813757,105990.0,105980.0,1.90283769]
[1750412709312,0.35236885,105990.0,105980.0,1.90283769]
[1750412711119,0.35236885,105990.0,105980.0,1.32939769]
[1750412711318,0.35236885,105990.0,105980.0,1.90283769]
[1750412713624,0.35236885,105990.0,105980.0,1.32939769]
[1750412713821,0.35236885,105990.0,105980.0,1.90279769]
[1750412714725,0.35236885,105990.0,105980.0,1.32939769]
[1750412715023,0.35236885,105990.0,105980.0,1.90279769]
[1750412716229,0.25813757,105990.0,105980.0,1.90279769]
[1750412718527,0.25813757,105990.0,105980.0,2.19749769]
[1750412719230,0.33348399,105990.0,105980.0,2.19749769]
[1750412720327,0.32930992,105990.0,105980.0,2.19749769]
[1750412721131,0.14064642,105990.0,105980.0,2.19749769]
[1750412721327,0.14482049,105990.0,105980.0,2.19749769]
[1750412722833,0.06947407,105990.0,105980.0,2.19749769]
[1750412724634,0.25813757,105990.0,105980.0,2.22779769]
[1750412725834,0.25813757,105990.0,105980.0,2.22775769]
[1750412726334,0.25813757,105990.0,105980.0,1.65439769]
[1750412726535,0.25813757,105990.0,105980.0,2.22775769]
[1750412726734,0.25813757,105990.0,105980.0,1.65439769]
[1750412726935,0.25813757,105990.0,105980.0,2.22775769]
[1750412730030,0.25813757,105990.0,105980.0,2.20168112]
[1750412734839,0.25813757,105990.0,105980.0,2.23278112]
[1750412736439,0.22723757,105990.0,105980.0,2.23278112]
[1750412739241,0.22723757,105990.0,105980.0,1.74291948]
[1750412739442,0.22723757,105990.0,105980.0,2.23278112]
[1750412742344,0.22723757,105990.0,105980.0,2.22357694]
[1750412750434,0.03857407,105990.0,105980.0,2.22357694]
[1750412751146,0.00657407,105990.0,105980.0,2.22357694]
[1750412751946,0.00657407,105990.0,105980.0,2.46850776]
[1750412752245,0.00617407,105990.0,105980.0,2.46850776]
[1750412752445,0.00657407,105990.0,105980.0,2.46850776]
[1750412752744,0.00617407,105990.0,105980.0,2.46850776]
[1750412753346,0.00657407,105990.0,105980.0,2.46850776]
[1750412753548,0.00617407,105990.0,105980.0,2.46850776]
[1750412753948,0.00657407,105990.0,105980.0,2.46850776]
[1750412754449,0.00657407,105990.0,105980.0,2.48538776]
[1750412767663,0.10074929,105990.0,105980.0,2.47618395]
[1750412767859,0.10074929,105990.0,105980.0,2.45930395]
[1750412769061,0.00657407,105990.0,105980.0,2.45930395]
[1750412769357,0.10074929,105990.0,105980.0,2.45930395]
[1750412779264,0.17614759,105990.0,105980.0,2.45930395]
[1750412779467,0.08197237,105990.0,105980.0,2.45930395]
[1750412779650,0.08197237,105990.0,105980.0,2.59170395]
[1750412782761,0.08197237,105990.0,105980.0,2.34677313]
[1750412782964,0.08197237,105990.0,105980.0,1.64101313]
[1750412783162,0.11297237,105990.0,105980.0,2.34645313]
[1750412783363,0.30163547,105990.0,105980.0,2.28505313]
[1750412783663,0.33423547,105990.0,105980.0,2.28505313]
[1750412785271,0.33423547,105990.0,105980.0,2.15265313]
[1750412785464,0.33423547,105990.0,105980.0,1.94265313]
[1750412786170,0.14557237,105990.0,105980.0,2.22265313]
[1750412787065,0.33423547,105990.0,105980.0,2.22265313]
[1750412787269,0.14557237,105990.0,105980.0,2.25525313]
[1750412788576,0.33423547,105990.0,105980.0,1.96055313]
[1750412789262,0.14557237,105990.0,105980.0,1.96055313]
[1750412789458,0.33423547,105990.0,105980.0,1.96055313]
[1750412789768,0.33423547,105990.0,105980.0,1.67055313]
[1750412789969,0.14557237,105990.0,105980.0,1.67055313]
[1750412790471,0.14557237,105990.0,105980.0,1.92055313]
[1750412791466,0.14557237,105990.0,105980.0,1.67055313]
[1750412791865,0.14557237,105990.0,105980.0,1.96055313]
[1750412792066,0.14557237,105990.0,105980.0,1.68055313]
[1750412792266,0.33423547,105990.0,105980.0,1.91055313]
[1750412792769,0.14557237,105990.0,105980.0,1.91055313]
[1750412793369,0.14557237,105990.0,105980.0,1.67055313]
[1750412793571,0.33423537,105990.0,105980.0,1.67047313]
[1750412794665,0.33423537,105990.0,105980.0,1.09751313]
[1750412794865,0.95874311,105990.0,105980.0,0.3599781]
[1750412795073,0.86456789,105990.0,105980.0,0.9329381]
[1750412795369,0.95879137,105990.0,105980.0,0.9329381]
[1750412796574,0.98112142,105990.0,105980.0,0.9329381]
[1750412797172,0.7361906,105990.0,105980.0,0.9329381]
[1750412797473,0.98112142,105990.0,105980.0,0.9329381]
[1750412799276,0.98112142,105990.0,105980.0,0.81789082]
[1750412799470,0.88689794,105990.0,105980.0,1.00657252]
[1750412801479,0.64196712,105990.0,105980.0,1.25150334]
[1750412801679,0.28116712,105990.0,105980.0,1.25150334]
[1750412801881,0.28116712,105990.0,105980.0,1.61230334]
[1750412802580,0.34225169,105990.0,105980.0,1.61230334]
[1750412802878,0.34265169,105990.0,105980.0,1.64280334]
[1750412803078,0.34225169,105990.0,105980.0,1.64280334]
[1750412803377,0.34265169,105990.0,105980.0,1.64280334]
[1750412807579,0.34265169,105990.0,105980.0,1.67440334]
[1750412809285,0.24856712,105990.0,105980.0,1.67440334]
[1750412816497,0.34265169,105990.0,105980.0,1.67440334]
[1750412817500,0.24856712,105990.0,105980.0,1.67440334]
[1750412818607,0.34265169,105990.0,105980.0,1.67440334]
[1750412819104,0.24856712,105990.0,105980.0,1.67440334]
[1750412825301,0.34265169,105990.0,105980.0,1.67440334]
[1750412826305,0.24856712,105990.0,105980.0,1.67440334]
[1750412827107,0.24856712,105990.0,105980.0,1.67432334]
[1750412827607,0.22623707,105990.0,105980.0,1.67432334]
[1750412827804,0.32032164,105990.0,105980.0,1.67432334]
[1750412828607,0.22623707,105990.0,105980.0,1.67432334]
[1750412836813,0.19523707,105990.0,105980.0,1.67432334]
[1750412837015,0.19523707,105990.0,105980.0,1.10144334]
[1750412837210,0.19523707,105990.0,105980.0,1.67428334]
[1750412840117,0.28932164,105990.0,105980.0,1.67428334]
[1750412840814,0.19523707,105990.0,105980.0,1.67428334]
[1750412841314,0.00657407,105990.0,105980.0,2.02428334]
[1750412841514,0.00657407,105990.0,105980.0,2.26921416]
[1750412841515,0.27058903,105990.0,105980.0,2.26921416]
[1750412841817,0.27058903,105990.0,105980.0,2.02428334]
[1750412842017,0.27018903,105990.0,105980.0,2.02428334]
[1750412842318,0.19523707,105990.0,105980.0,2.02428334]
[1750412842717,0.19623707,105990.0,105980.0,2.02428334]
[1750412842917,0.19923707,105990.0,105980.0,2.02428334]
[1750412843314,0.19923707,105990.0,105980.0,2.0150791]
[1750412843516,0.29332164,105990.0,105980.0,2.0150791]
[1750412845417,0.19923707,105990.0,105980.0,2.0150791]
[1750412845618,0.19923707,105990.0,105980.0,2.3097791]
[1750412846315,0.27455707,105990.0,105980.0,2.2797791]
[1750412847420,0.08589407,105990.0,105980.0,2.2797791]
[1750412848615,0.08589407,105990.0,105980.0,2.65694992]
[1750412849015,0.08549407,105990.0,105980.0,2.65694992]
[1750412849519,0.01057407,105990.0,105980.0,2.65694992]
[1750412853818,0.08582892,105990.0,105980.0,2.65694992]
[1750412856026,0.08542892,105990.0,105980.0,2.65694992]
[1750412856324,0.08065485,105990.0,105980.0,2.65694992]
[1750412856527,0.09486067,106000.0,105990.0,0.188663]
[1750412856727,0.09406067,106000.0,105990.0,1.43843731]
[1750412858624,0.22690598,106010.0,106000.0,0.1886452]
[1750412858833,0.13364531,106010.0,106000.0,2.57647508]
[1750412859229,0.22766192,106010.0,106000.0,2.70871508]
[1750412859534,0.001,106010.0,106000.0,2.70871508]
[1750412860032,0.0014,106010.0,106000.0,2.70871508]
[1750412861036,0.0014,106010.0,106000.0,2.70971508]
[1750412861242,0.0014,106010.0,106000.0,2.71271508]
[1750412867434,0.07597078,106020.0,106010.0,0.1886274]
[1750412867732,0.13444531,106040.0,106030.0,0.1885918]
[1750412867733,0.22686192,106040.0,106030.0,0.1885918]
[1750412867946,0.001,106040.0,106030.0,2.77939344]
[1750412868144,0.001,106040.0,106030.0,2.84069344]
[1750412868848,0.0321,106040.0,106030.0,2.83149361]
[1750412869146,0.001,106040.0,106030.0,2.53679361]
[1750412869442,0.05735977,106040.0,106030.0,2.55418933]
[1750412869742,0.25310784,106040.0,106030.0,1.16331851]
[1750412869942,0.25964807,106040.0,106030.0,0.77171851]
[1750412870141,0.25964807,106040.0,106030.0,0.1885919]
[1750412870142,1.00681799,106040.0,106030.0,0.1885919]
[1750412870345,0.1885919,106030.0,106020.0,0.86967832]
[1750412870643,0.2510919,106030.0,106020.0,0.81990914]
[1750412870838,0.2510919,106030.0,106020.0,1.39238914]
[1750412871039,0.2510919,106030.0,106020.0,0.81990914]
[1750412871340,0.2510919,106030.0,106020.0,1.39238914]
[1750412872141,0.2510919,106030.0,106020.0,1.39338914]
[1750412872748,0.2520919,106030.0,106020.0,1.39338914]
[1750412873048,0.2520919,106030.0,106020.0,1.14827488]
[1750412874548,0.0635,106030.0,106020.0,2.09382226]
[1750412874845,0.0325,106030.0,106020.0,2.09382226]
[1750412875044,0.0325,106030.0,106020.0,2.16022226]
[1750412875247,0.0014,106030.0,106020.0,2.17744516]
[1750412876655,0.0014,106030.0,106020.0,2.47214516]
[1750412876950,0.05772111,106030.0,106020.0,2.17744516]
[1750412877154,0.05732111,106030.0,106020.0,2.17744516]
[1750412877341,0.05772111,106030.0,106020.0,2.17744516]
[1750412878351,0.05772111,106030.0,106020.0,1.60496516]
[1750412878651,0.05772111,106030.0,106020.0,2.30940516]
[1750412880452,0.05772111,106030.0,106020.0,2.31904414]
[1750412883061,0.05772111,106030.0,106020.0,2.30940516]
[1750412883252,0.27841321,106030.0,106020.0,2.27606516]
[1750412883457,0.27841321,106030.0,106020.0,2.24296516]
[1750412883458,0.31011321,106030.0,106020.0,2.24296516]
[1750412883959,0.2537921,106030.0,106020.0,2.24296516]
[1750412884651,0.0652,106030.0,106020.0,2.24296516]
[1750412884853,0.2537921,106030.0,106020.0,1.06509778]
[1750412885060,0.2537921,106030.0,106020.0,0.3482704]
[1750412885259,0.2537921,106030.0,106020.0,1.29741778]
[1750412885457,0.2537921,106030.0,106020.0,0.001]
[1750412885651,1.04797148,106030.0,106020.0,0.1896099]
[1750412885849,1.05214555,106030.0,106020.0,0.001]
[1750412886054,1.43422555,106030.0,106020.0,0.001]
[1750412886255,1.18422555,106030.0,106020.0,0.1896099]
[1750412886456,1.03349478,106030.0,106020.0,0.18040796]
[1750412886656,1.27824216,106030.0,106020.0,0.75284796]
[1750412887061,1.27824216,106030.0,106020.0,0.18040796]
[1750412887462,1.03349478,106030.0,106020.0,0.75280796]
[1750412887762,1.27824216,106030.0,106020.0,0.75280796]
[1750412888161,1.03349478,106030.0,106020.0,0.75280796]
[1750412889068,0.93947817,106030.0,106020.0,0.75280796]
[1750412889458,1.03349478,106030.0,106020.0,0.18040796]
[1750412889660,1.03349478,106030.0,106020.0,0.75276796]
[1750412890063,1.03349478,106030.0,106020.0,0.99751534]
[1750412890365,0.84486278,106030.0,106020.0,0.99751534]
[1750412891265,0.48406278,106030.0,106020.0,0.99751534]
[1750412891666,0.84486278,106030.0,106020.0,0.99751534]
[1750412891862,0.84486278,106030.0,106020.0,0.42515534]
[1750412892061,0.84486278,106030.0,106020.0,0.99763534]
[1750412894068,0.75084617,106030.0,106020.0,0.99763534]
[1750412894468,0.75084617,106030.0,106020.0,0.75288796]
[1750412894663,0.84486278,106030.0,106020.0,0.99763534]
[1750412897971,0.71278278,106030.0,106020.0,0.99763534]
[1750412899676,0.61876617,106030.0,106020.0,0.99763534]
[1750412900676,0.71278278,106030.0,106020.0,0.98843346]
[1750412902676,0.35198278,106030.0,106020.0,0.98843346]
[1750412902875,0.71278278,106030.0,106020.0,0.98843346]
[1750412903078,0.35198278,106030.0,106020.0,0.98843346]
[1750412904075,0.25796617,106030.0,106020.0,0.98843346]
[1750412906382,0.22626617,106030.0,106020.0,0.98843346]
[1750412906680,0.22626617,106030.0,106020.0,1.41343346]
[1750412907083,0.08076351,106030.0,106020.0,2.03818084]
[1750412907277,0.08076565,106030.0,106020.0,2.03818084]
[1750412907780,0.08036565,106030.0,106020.0,2.03818084]
[1750412908283,0.08076565,106030.0,106020.0,2.03818084]
[1750412908884,0.08036565,106030.0,106020.0,2.03818084]
[1750412909074,0.26895785,106030.0,106020.0,2.03818084]
[1750412909275,0.08036565,106030.0,106020.0,2.03818084]
[1750412909476,0.08036565,106030.0,106020.0,2.17026084]
[1750412909676,0.08076565,106030.0,106020.0,2.17026084]
[1750412910483,0.26935795,106030.0,106020.0,2.17026084]
[1750412911284,0.08076565,106030.0,106020.0,2.17026084]
[1750412911683,0.26935795,106030.0,106020.0,2.17026084]
[1750412913778,0.26935795,106030.0,106020.0,2.16106021]
[1750412913983,0.26935795,106030.0,106020.0,1.53619283]
[1750412915885,0.26935795,106030.0,106020.0,1.40411283]
[1750412916486,0.26935795,106030.0,106020.0,1.69881283]
[1750412916887,0.26935795,106030.0,106020.0,1.94356021]
[1750412917987,0.26935795,106030.0,106020.0,1.69881283]
[1750412918978,0.26935795,106030.0,106020.0,1.94356021]
[1750412922287,0.26935795,106030.0,106020.0,2.31356021]
[1750412922888,0.26935795,106030.0,106020.0,1.94356021]
[1750412929294,0.26935795,106030.0,106020.0,2.29356021]
[1750412930295,0.26935795,106030.0,106020.0,1.38982545]
[1750412930489,0.33475795,106030.0,106020.0,1.27377283]
[1750412931489,0.25956637,106030.0,106020.0,1.97457283]
[1750412931692,0.25956637,106030.0,106020.0,1.66547283]
[1750412933493,0.33475795,106030.0,106020.0,1.66547283]
[1750412933995,0.33475795,106030.0,106020.0,1.63457283]
[1750412934391,0.33475795,106030.0,106020.0,0.97907283]
[1750412934588,0.33475795,106030.0,106020.0,1.33987283]
[1750412934789,0.33475795,106030.0,106020.0,1.33983283]
[1750412935093,0.33475795,106030.0,106020.0,0.97903283]
[1750412935399,0.33475795,106030.0,106020.0,0.96983171]
[1750412935400,0.25956637,106030.0,106020.0,0.96983171]
[1750412936694,0.35358298,106030.0,106020.0,1.00563748]
[1750412936993,0.71438298,106030.0,106020.0,1.00563748]
[1750412937294,0.35358298,106030.0,106020.0,1.00563748]
[1750412938898,0.71438298,106030.0,106020.0,0.76089]
[1750412939093,0.71438298,106030.0,106020.0,0.18861]
[1750412939284,0.62036637,106030.0,106020.0,0.76089]
[1750412940499,0.62036637,106030.0,106020.0,0.18861]
[1750412940700,0.62036637,106030.0,106020.0,0.76089]
[1750412941092,0.62036637,106030.0,106020.0,1.00563738]
[1750412941596,0.62036637,106030.0,106020.0,0.43335738]
[1750412941797,0.62036637,106030.0,106020.0,1.00567738]
[1750412942700,0.62036637,106030.0,106020.0,0.43335738]
[1750412942900,0.62036637,106030.0,106020.0,1.00567738]
[1750412943202,0.62036637,106030.0,106020.0,0.76093]
[1750412944203,0.62036637,106030.0,106020.0,1.00567738]
[1750412944702,0.62036637,106030.0,106020.0,0.43335738]
[1750412945002,0.62036637,106030.0,106020.0,1.00567738]
[1750412945502,0.62036637,106030.0,106020.0,0.99647551]
[1750412946104,0.62036637,106030.0,106020.0,0.42415551]
[1750412946303,0.75221168,106030.0,106020.0,0.99643551]
[1750412946902,0.75221168,106030.0,106020.0,0.42415551]
[1750412947103,0.75221168,106030.0,106020.0,0.99643551]
[1750412948609,0.75221168,106030.0,106020.0,0.42415551]
[1750412948795,0.75221168,106030.0,106020.0,0.99643551]
[1750412949105,0.62036637,106030.0,106020.0,0.99643551]
[1750412949305,0.71437924,106030.0,106020.0,0.99643551]
[1750412950206,0.35357924,106030.0,106020.0,0.75168813]
[1750412951713,0.35357924,106030.0,106020.0,0.99643551]
[1750412952205,0.71437924,106030.0,106020.0,0.17940813]
[1750412952411,0.1886101,106020.0,106010.0,0.48051558]
[1750412952614,0.34532297,106020.0,106010.0,1.05279558]
[1750412953609,0.2513101,106020.0,106010.0,1.05279558]
[1750412953911,0.1886634,105990.0,105980.0,0.9385068]
[1750412954125,0.26388551,105990.0,105980.0,0.91947898]
[1750412954325,0.29698551,105990.0,105980.0,1.49175898]
[1750412954716,0.26388551,105990.0,105980.0,1.13133418]
[1750412955023,0.26388551,105990.0,105980.0,1.16373418]
[1750412955218,0.26488551,105990.0,105980.0,1.16773418]
[1750412956015,0.26488551,105990.0,105980.0,0.59545418]
[1750412956211,0.26488551,105990.0,105980.0,1.16777418]
[1750412957223,0.26488551,105990.0,105980.0,0.9230268]
[1750412957522,0.26688551,105990.0,105980.0,1.16777418]
[1750412957911,0.26588551,105990.0,105980.0,0.2199812]
[1750412958117,0.43112551,105990.0,105980.0,0.001]
[1750412958318,0.55793651,105990.0,105980.0,1.00674858]
[1750412958520,0.46390887,105990.0,105980.0,1.00674858]
[1750412958824,0.3878034,105990.0,105980.0,1.00674858]
[1750412959036,0.3878034,105990.0,105980.0,0.7620012]
[1750412959327,0.46280699,105990.0,105980.0,0.7620412]
[1750412959529,0.46280699,105990.0,105980.0,0.1896812]
[1750412959530,0.3878034,105990.0,105980.0,0.1896812]
[1750412959727,0.2557634,105990.0,105980.0,0.7620412]
[1750412960229,0.2557634,105990.0,105980.0,1.00678858]
[1750412960427,0.33076374,105990.0,105980.0,1.00678858]
[1750412960629,0.33076374,105990.0,105980.0,0.7620412]
[1750412960832,0.33076374,105990.0,105980.0,0.85060738]
[1750412961129,0.33493781,105990.0,105980.0,0.46692858]
[1750412961323,0.33493781,105990.0,105980.0,1.03928858]
[1750412963030,0.33493781,105990.0,105980.0,0.24574738]
[1750412963237,0.33493781,105990.0,105980.0,0.5734]
[1750412963439,0.33493781,105990.0,105980.0,0.7620812]
[1750412963730,0.40938931,105990.0,105980.0,0.7620812]
[1750412963918,0.40938931,105990.0,105980.0,0.001]
[1750412964119,0.77018931,105990.0,105980.0,0.5734]
[1750412965028,0.77018931,105990.0,105980.0,0.001]
[1750412965222,1.01493669,105990.0,105980.0,0.57344]
[1750412967134,1.01493669,105990.0,105980.0,0.001]
[1750412967833,1.03396399,105990.0,105980.0,0.001]
[1750412968029,0.93993635,105990.0,105980.0,0.001]
[1750412968224,1.03396399,105990.0,105980.0,0.001]
[1750412968430,0.93993635,105990.0,105980.0,0.001]
[1750412969536,0.188699,105970.0,105960.0,0.7913519]
[1750412969736,0.60567891,105970.0,105960.0,1.06789928]
[1750412969927,0.188699,105970.0,105960.0,1.06789928]
[1750412970127,0.24528205,105970.0,105960.0,1.06789928]
[1750412970335,0.24528205,105970.0,105960.0,1.42869928]
[1750412970832,0.24628205,105970.0,105960.0,1.43469928]
[1750412971032,0.25592215,105970.0,105960.0,0.8291519]
[1750412971334,0.25592215,105970.0,105960.0,1.07389928]
[1750412971636,0.25492215,105970.0,105960.0,1.07089928]
[1750412971839,0.25492215,105970.0,105960.0,0.8261519]
[1750412972039,0.25492215,105970.0,105960.0,1.07089928]
[1750412972542,0.1987391,105970.0,105960.0,1.07089928]
[1750412972842,0.1987391,105970.0,105960.0,0.8261919]
[1750412973041,0.1987391,105970.0,105960.0,1.07093928]
[1750412974334,0.1987391,105970.0,105960.0,0.49845928]
[1750412974535,0.63444564,105970.0,105960.0,1.07093928]
[1750412974734,0.66574564,105970.0,105960.0,1.07093928]
[1750412975346,0.5908391,105970.0,105960.0,1.07093928]
[1750412976239,0.59501317,105970.0,105960.0,1.07093928]
[1750412977645,0.23421317,105970.0,105960.0,0.8261919]
[1750412977835,0.23421317,105970.0,105960.0,1.07093928]
[1750412979345,0.30911971,105970.0,105960.0,1.07093928]
[1750412979739,0.27781971,105970.0,105960.0,1.07093928]
[1750412982152,0.27781971,105970.0,105960.0,0.8261919]
[1750412982352,0.19327307,105970.0,105960.0,1.07093928]
[1750412982551,0.19287307,105970.0,105960.0,1.07093928]
[1750412982753,0.19327307,105970.0,105960.0,0.8261919]
[1750412982952,0.19327307,105970.0,105960.0,1.07093928]
[1750412985554,0.28730071,105970.0,105960.0,1.07093928]
[1750412986255,0.19327307,105970.0,105960.0,1.07093928]
[1750412987055,0.28730071,105970.0,105960.0,1.07093928]
[1750412987758,0.19327307,105970.0,105960.0,1.07093928]
[1750412988956,0.19327307,105970.0,105960.0,1.3162418]
[1750412989361,0.26850266,105970.0,105960.0,1.3162418]
[1750412991754,0.19327307,105970.0,105960.0,1.3162418]
[1750412992059,0.19287307,105970.0,105960.0,1.3162418]
[1750412992359,0.19327307,105970.0,105960.0,1.3162418]
[1750412993357,0.26850266,105970.0,105960.0,1.3162418]
[1750412998457,0.19327307,105970.0,105960.0,1.3162418]
[1750412999849,0.0799032,105970.0,105960.0,2.0370418]
[1750413000053,0.0795032,105970.0,105960.0,2.28206675]
[1750413000355,0.0799032,105970.0,105960.0,2.0370418]
[1750413000555,0.0795032,105970.0,105960.0,2.0370418]
[1750413001461,0.0799032,105970.0,105960.0,2.0370418]
[1750413002249,0.0799032,105970.0,105960.0,2.3317418]
[1750413003153,0.0799032,105970.0,105960.0,1.8416919]
[1750413003358,0.0799032,105970.0,105960.0,2.3317418]
[1750413003865,0.0799032,105970.0,105960.0,2.57676675]
[1750413004168,0.0799032,105970.0,105960.0,2.3317418]
[1750413005462,0.19327227,105970.0,105960.0,2.3317418]
[1750413005663,0.2686014,105970.0,105960.0,2.3317418]
[1750413006261,0.0799032,105970.0,105960.0,2.3317418]
[1750413007465,0.2686012,105970.0,105960.0,2.3317418]
[1750413007659,0.2686012,105970.0,105960.0,1.7592618]
[1750413007862,0.2686012,105970.0,105960.0,2.3317018]
[1750413008063,0.3008012,105970.0,105960.0,1.3372618]
[1750413008265,0.3332012,105970.0,105960.0,1.6150018]
[1750413008966,0.3332012,105970.0,105960.0,1.6465018]
[1750413010063,0.3332012,105970.0,105960.0,1.6776018]
[1750413010562,0.19327207,105970.0,105960.0,2.0276018]
[1750413010760,0.19327207,105970.0,105960.0,2.27262675]
[1750413010959,0.19327207,105970.0,105960.0,2.0276018]
[1750413011167,0.19287207,105970.0,105960.0,2.0376018]
[1750413011362,0.19327207,105970.0,105960.0,2.0376018]
[1750413013367,0.19327207,105970.0,105960.0,1.6776018]
[1750413013568,0.19327207,105970.0,105960.0,2.0576018]
[1750413013763,0.2686012,105970.0,105960.0,2.0576018]
[1750413015065,0.0799032,105970.0,105960.0,2.0576018]
[1750413015571,0.0799032,105970.0,105960.0,2.0376018]
[1750413015771,0.2686012,105970.0,105960.0,2.0376018]
[1750413015964,0.0799032,105970.0,105960.0,2.0376018]
[1750413016672,0.2686012,105970.0,105960.0,2.0376018]
[1750413017172,0.0799032,105970.0,105960.0,2.0376018]
[1750413018167,0.2686012,105970.0,105960.0,2.0376018]
[1750413020273,0.0799032,105970.0,105960.0,2.0376018]
[1750413022572,0.0799032,105970.0,105960.0,2.28262675]
[1750413022968,0.0799032,105970.0,105960.0,2.0376018]
[1750413023170,0.0795032,105970.0,105960.0,2.0376018]
[1750413023369,0.00457407,105970.0,105960.0,2.0376018]
[1750413023565,0.2686012,105970.0,105960.0,2.0276018]
[1750413024478,0.0799032,105970.0,105960.0,2.0276018]
[1750413025078,0.2686013,105970.0,105960.0,2.0276018]
[1750413025979,0.2686013,105970.0,105960.0,2.3223018]
[1750413026273,0.0799032,105970.0,105960.0,2.3223018]
[1750413026779,0.0799032,105970.0,105960.0,2.27262675]
[1750413026976,0.0799032,105970.0,105960.0,2.0276018]
[1750413027477,0.0799032,105970.0,105960.0,2.27262675]
[1750413028078,0.0795032,105970.0,105960.0,2.27262675]
[1750413028282,0.0799032,105970.0,105960.0,2.27262675]
[1750413029079,0.07532913,105980.0,105960.0,2.21611485]
[1750413029285,0.07612913,105990.0,105980.0,0.1886803]
[1750413029481,0.09482764,105990.0,105980.0,2.18843515]
[1750413029785,0.31557234,106000.0,105990.0,0.1886624]
[1750413030086,0.31557234,106000.0,105990.0,1.45145909]
[1750413030279,0.15862764,106000.0,105990.0,1.45145909]
[1750413030582,0.0329,106000.0,105990.0,1.45145909]
[1750413030785,0.0329,106000.0,105990.0,1.48175909]
[1750413031084,0.10760575,106000.0,105990.0,1.49899357]
[1750413031286,0.09402764,106010.0,106000.0,0.1886447]
[1750413031587,0.32045571,106020.0,106010.0,0.1886269]
[1750413031588,0.41448205,106020.0,106010.0,0.1886269]
[1750413031885,0.28263674,106020.0,106010.0,2.0064368]
[1750413032083,0.31543674,106020.0,106010.0,2.0064368]
[1750413032290,0.0328,106020.0,106010.0,2.0064368]
[1750413032584,0.2214091,106020.0,106010.0,2.0064368]
[1750413032781,0.2214091,106020.0,106010.0,1.43141185]
[1750413032983,0.2557091,106020.0,106010.0,1.40087628]
[1750413034183,0.33124789,106020.0,106010.0,1.40087628]
[1750413035080,0.2561091,106020.0,106010.0,1.40087628]
[1750413035288,0.33122656,106020.0,106010.0,1.40087628]
[1750413040390,0.33122656,106020.0,106010.0,0.82691628]
[1750413040595,0.33122656,106020.0,106010.0,0.79421628]
[1750413040792,0.33122656,106020.0,106010.0,1.36781628]
[1750413041192,0.33122656,106020.0,106010.0,1.1230269]
[1750413041398,0.33122656,106020.0,106010.0,1.36781628]
[1750413041594,0.33122656,106020.0,106010.0,0.1886268]
[1750413041797,0.69202656,106020.0,106010.0,0.75298414]
[1750413042101,0.33122656,106020.0,106010.0,0.75298414]
[1750413042298,0.33540063,106020.0,106010.0,0.75298414]
[1750413042800,0.69620063,106020.0,106010.0,0.75298414]
[1750413044098,0.69620063,106020.0,106010.0,0.7621868]
[1750413044705,0.69620063,106020.0,106010.0,1.00697618]
[1750413049305,0.62108317,106020.0,106010.0,1.00697618]
[1750413050705,0.71511081,106020.0,106010.0,1.00697618]
[1750413051813,0.71511081,106020.0,106010.0,0.99777338]
[1750413054312,0.71511081,106020.0,106010.0,1.00657618]
[1750413060413,0.62108317,106020.0,106010.0,1.00657618]
[1750413060813,0.86591739,106020.0,106010.0,1.00662102]
[1750413061117,0.86591739,106020.0,106010.0,0.43346102]
[1750413061514,0.86591739,106020.0,106010.0,1.00622102]
[1750413061710,0.86591739,106020.0,106010.0,0.43346102]
[1750413062111,0.86591739,106020.0,106010.0,1.00622102]
[1750413062914,0.99726123,106020.0,106010.0,1.00622102]
[1750413064711,0.99308716,106020.0,106010.0,1.00622102]
[1750413065620,0.99726123,106020.0,106010.0,1.00622102]
[1750413065815,0.1886268,106010.0,106000.0,0.94988482]
[1750413066010,0.2219268,106010.0,106000.0,1.81434444]
[1750413066206,0.2219268,106010.0,106000.0,1.24150444]
[1750413066410,0.2219268,106010.0,106000.0,1.81426444]
[1750413066614,0.2219268,106010.0,106000.0,1.80506165]
[1750413067018,0.2249268,106010.0,106000.0,1.80506165]
[1750413067219,0.2249268,106010.0,106000.0,1.23230165]
[1750413067420,0.2249268,106010.0,106000.0,1.80518165]
[1750413067619,0.2269268,106010.0,106000.0,1.44438165]
[1750413068013,0.32114603,106010.0,106000.0,1.44438165]
[1750413068916,0.32114603,106010.0,106000.0,0.87150165]
[1750413069119,0.32114603,106010.0,106000.0,1.44426165]
[1750413069313,0.2269268,106010.0,106000.0,1.44426165]
[1750413072424,0.2269268,106010.0,106000.0,1.80506165]
[1750413073925,0.1936268,106010.0,106000.0,1.80506165]
[1750413074316,0.1936268,106010.0,106000.0,1.78972344]
[1750413074517,0.28784603,106010.0,106000.0,1.78972344]
[1750413075020,0.28784603,106010.0,106000.0,2.11972344]
[1750413075421,0.28824603,106010.0,106000.0,2.11972344]
[1750413076127,0.28624603,106010.0,106000.0,2.11972344]
[1750413077215,0.28324603,106010.0,106000.0,2.12172344]
[1750413077421,0.28424603,106010.0,106000.0,2.12172344]
[1750413077617,0.28384603,106010.0,106000.0,2.12172344]
[1750413077818,0.28284603,106010.0,106000.0,2.12172344]
[1750413078020,0.28284603,106010.0,106000.0,2.12272344]
[1750413079130,0.28324603,106010.0,106000.0,2.12272344]
[1750413079330,0.28284603,106010.0,106000.0,2.12272344]
[1750413079528,0.28324603,106010.0,106000.0,2.12272344]
[1750413080928,0.2874201,106010.0,106000.0,2.12272344]
[1750413084128,0.19320087,106010.0,106000.0,2.12272344]
[1750413088830,0.00457407,106010.0,106000.0,2.36755766]
[1750413089021,0.09425113,106010.0,106000.0,2.47739666]
[1750413089224,0.09425113,106010.0,106000.0,2.52455726]
[1750413089424,0.07580872,106010.0,106000.0,2.52455726]
[1750413089625,0.07540872,106010.0,106000.0,2.52455726]
[1750413089827,0.07540872,106020.0,106010.0,0.1886268]
[1750413090025,0.26364252,106020.0,106010.0,1.43209524]
[1750413091526,0.26464252,106020.0,106010.0,1.43209524]
[1750413093231,0.07603352,106020.0,106010.0,1.43209524]
[1750413095139,0.08020759,106020.0,106010.0,1.43209524]
[1750413095832,0.26881659,106020.0,106010.0,1.43209524]
[1750413099436,0.00517407,106020.0,106010.0,1.43209524]
[1750413099640,0.19378307,106020.0,106010.0,1.43209524]
[1750413099837,0.19378307,106020.0,106010.0,1.72679524]
[1750413100242,0.00517407,106020.0,106010.0,1.72679524]
[1750413100543,0.08047083,106020.0,106010.0,1.72679524]
[1750413101243,0.26907983,106020.0,106010.0,1.72679524]
[1750413103740,0.08047083,106020.0,106010.0,1.72679524]
[1750413104147,0.26907993,106020.0,106010.0,1.72679524]
[1750413104532,0.08047083,106020.0,106010.0,1.72679524]
[1750413107443,0.26907993,106020.0,106010.0,1.72679524]